[Event "Titled Tuesday Blitz March 21 Early 2023"]
[White "Daneshvar, Bardiya"]
[Black "Kobo, Ori"]
[WhiteFideId "12576468"]
[BlackFideId "2812320"]
[WhiteElo "2468"]
[BlackElo "2447"]
[Result "1/2-1/2"]
[Round "06"]
[TimeControl "180+2"]
[Date "2023.03.21"]
[WhiteClock "0:00:07"]
[BlackClock "0:00:05"]

1. b3 {[%clk 0:02:53]}  e5 {[%clk 0:02:57]} 2. Bb2 {[%clk 0:02:53]}  Nc6 {[%clk 0:02:58]} 3. e3 {[%clk 0:02:52]}  d5 {[%clk 0:02:58]} 4. Bb5 {[%clk 0:02:53]}  Bd6 {[%clk 0:02:58]} 5. Nf3 {[%clk 0:02:51]}  Qe7 {[%clk 0:02:58]} 6. d4 {[%clk 0:02:48]}  e4 {[%clk 0:02:58]} 7. Nfd2 {[%clk 0:02:49]}  Qg5 {[%clk 0:02:56]} 8. g3 {[%clk 0:02:47]}  a6 {[%clk 0:02:39]} 9. Be2 {[%clk 0:02:47]}  Nce7 {[%clk 0:02:27]} 10. Ba3 {[%clk 0:02:47]}  Bxa3 {[%clk 0:02:24]} 11. Nxa3 {[%clk 0:02:48]}  Bh3 {[%clk 0:02:23]} 12. c4 {[%clk 0:02:46]}  c6 {[%clk 0:02:22]} 13. Qc2 {[%clk 0:02:45]}  Nf6 {[%clk 0:02:20]} 14. O-O-O {[%clk 0:02:45]}  Qf5 {[%clk 0:02:16]} 15. f4 {[%clk 0:02:41]}  exf3 {[%clk 0:02:09]} 16. Nxf3 {[%clk 0:02:40]}  Qxc2+ {[%clk 0:02:00]} 17. Nxc2 {[%clk 0:02:41]}  O-O {[%clk 0:01:53]} 18. Ne5 {[%clk 0:02:32]}  Rfe8 {[%clk 0:01:50]} 19. Rde1 {[%clk 0:02:19]}  Ng6 {[%clk 0:01:47]} 20. Nd3 {[%clk 0:02:16]}  Bg2 {[%clk 0:01:39]} 21. Rhg1 {[%clk 0:02:16]}  Be4 {[%clk 0:01:39]} 22. Kd2 {[%clk 0:02:09]}  Re7 {[%clk 0:01:37]} 23. Ref1 {[%clk 0:02:02]}  Rae8 {[%clk 0:01:36]} 24. c5 {[%clk 0:01:52]}  h5 {[%clk 0:01:10]} 25. b4 {[%clk 0:01:44]}  Ng4 {[%clk 0:00:59]} 26. Bxg4 {[%clk 0:01:23]}  hxg4 {[%clk 0:01:00]} 27. Rf2 {[%clk 0:01:19]}  f6 {[%clk 0:00:55]} 28. Re2 {[%clk 0:01:04]}  Nf8 {[%clk 0:00:49]} 29. Nce1 {[%clk 0:01:01]}  Nh7 {[%clk 0:00:32]} 30. Nf2 {[%clk 0:00:59]}  Ng5 {[%clk 0:00:27]} 31. Nxe4 {[%clk 0:00:48]}  Rxe4 {[%clk 0:00:23]} 32. Rf1 {[%clk 0:00:46]}  Kf7 {[%clk 0:00:21]} 33. Rf4 {[%clk 0:00:41]}  Kg6 {[%clk 0:00:20]} 34. Rxe4 {[%clk 0:00:39]}  Nxe4+ {[%clk 0:00:15]} 35. Kc2 {[%clk 0:00:38]}  Rh8 {[%clk 0:00:16]} 36. Nd3 {[%clk 0:00:37]}  Ng5 {[%clk 0:00:16]} 37. Ne1 {[%clk 0:00:06]}  Kf5 {[%clk 0:00:16]} 38. Rf2+ {[%clk 0:00:03]}  Kg6 {[%clk 0:00:14]} 39. Kd3 {[%clk 0:00:02]}  Re8 {[%clk 0:00:12]} 40. a4 {[%clk 0:00:02]}  Ra8 {[%clk 0:00:11]} 41. Rb2 {[%clk 0:00:01]}  Ne4 {[%clk 0:00:08]} 42. Ng2 {[%clk 0:00:01]}  Kf7 {[%clk 0:00:07]} 43. Nf4 {[%clk 0:00:02]}  g5 {[%clk 0:00:07]} 44. Ne2 {[%clk 0:00:02]}  Ke6 {[%clk 0:00:07]} 45. Nc3 {[%clk 0:00:02]}  f5 {[%clk 0:00:04]} 46. Nxe4 {[%clk 0:00:03]}  fxe4+ {[%clk 0:00:05]} 47. Ke2 {[%clk 0:00:03]}  Rh8 {[%clk 0:00:05]} 48. Kf1 {[%clk 0:00:03]}  Rf8+ {[%clk 0:00:04]} 49. Rf2 {[%clk 0:00:04]}  Rf3 {[%clk 0:00:04]} 50. Ke2 {[%clk 0:00:04]}  Kd7 {[%clk 0:00:03]} 51. a5 {[%clk 0:00:04]}  Ke6 {[%clk 0:00:03]} 52. Rf1 {[%clk 0:00:04]}  Kf5 {[%clk 0:00:03]} 53. Rh1 {[%clk 0:00:05]}  Ke6 {[%clk 0:00:03]} 54. Rg1 {[%clk 0:00:05]}  Kf5 {[%clk 0:00:03]} 55. Rh1 {[%clk 0:00:05]}  Kg6 {[%clk 0:00:03]} 56. Rg1 {[%clk 0:00:06]}  Kh5 {[%clk 0:00:03]} 57. Rh1 {[%clk 0:00:06]}  Kg6 {[%clk 0:00:04]} 58. Rg1 {[%clk 0:00:07]}  Kh5 {[%clk 0:00:04]} 59. Rh1 {[%clk 0:00:07]}  Kg6 {[%clk 0:00:05]} 1/2-1/2


[Site "https://www.chess.com"]

[Event "Titled Tuesday Blitz March 21 Early 2023"]
[White "Makhnev, Denis"]
[Black "Kukhmazov, Arsen"]
[WhiteFideId "13707647"]
[BlackFideId "24108260"]
[WhiteElo "2525"]
[BlackElo "2378"]
[Result "1-0"]
[Round "06"]
[TimeControl "180+2"]
[Date "2023.03.21"]
[WhiteClock "0:00:05"]
[BlackClock "0:00:06"]

1. d4 {[%clk 0:02:57]}  d5 {[%clk 0:02:54]} 2. c4 {[%clk 0:02:57]}  c6 {[%clk 0:02:54]} 3. Nf3 {[%clk 0:02:57]}  Nf6 {[%clk 0:02:55]} 4. Qb3 {[%clk 0:02:58]}  dxc4 {[%clk 0:02:52]} 5. Qxc4 {[%clk 0:02:58]}  Bf5 {[%clk 0:02:53]} 6. g3 {[%clk 0:02:58]}  e6 {[%clk 0:02:53]} 7. Bg2 {[%clk 0:02:59]}  Be7 {[%clk 0:02:54]} 8. O-O {[%clk 0:03:00]}  O-O {[%clk 0:02:54]} 9. Nbd2 {[%clk 0:02:58]}  Ne4 {[%clk 0:02:50]} 10. Qb3 {[%clk 0:02:56]}  Qb6 {[%clk 0:02:48]} 11. Nc4 {[%clk 0:02:56]}  Qxb3 {[%clk 0:02:47]} 12. axb3 {[%clk 0:02:56]}  Nd7 {[%clk 0:02:48]} 13. Bf4 {[%clk 0:02:52]}  g5 {[%clk 0:02:43]} 14. Be3 {[%clk 0:02:50]}  h6 {[%clk 0:02:43]} 15. Nfd2 {[%clk 0:02:40]}  Nxd2 {[%clk 0:02:42]} 16. Bxd2 {[%clk 0:02:41]}  Bg6 {[%clk 0:02:25]} 17. f4 {[%clk 0:02:15]}  a6 {[%clk 0:02:22]} 18. e4 {[%clk 0:02:01]}  f6 {[%clk 0:02:20]} 19. Rae1 {[%clk 0:01:47]}  Rad8 {[%clk 0:02:17]} 20. Ba5 {[%clk 0:01:46]}  Rde8 {[%clk 0:02:17]} 21. Bc3 {[%clk 0:01:43]}  Bf7 {[%clk 0:02:13]} 22. Na5 {[%clk 0:01:32]}  Rb8 {[%clk 0:02:09]} 23. Kh1 {[%clk 0:01:30]}  Bd8 {[%clk 0:02:08]} 24. Nc4 {[%clk 0:01:29]}  Bc7 {[%clk 0:02:03]} 25. Bb4 {[%clk 0:01:25]}  Rfd8 {[%clk 0:02:01]} 26. Be7 {[%clk 0:01:25]}  Re8 {[%clk 0:01:58]} 27. Bd6 {[%clk 0:01:25]}  Rec8 {[%clk 0:01:58]} 28. e5 {[%clk 0:00:59]}  f5 {[%clk 0:01:39]} 29. g4 {[%clk 0:00:58]}  fxg4 {[%clk 0:01:13]} 30. fxg5 {[%clk 0:00:58]}  hxg5 {[%clk 0:01:13]} 31. Be7 {[%clk 0:00:52]}  Re8 {[%clk 0:00:57]} 32. Bxg5 {[%clk 0:00:50]}  Bg6 {[%clk 0:00:58]} 33. h3 {[%clk 0:00:36]}  Bc2 {[%clk 0:00:46]} 34. Re3 {[%clk 0:00:31]}  Rf8 {[%clk 0:00:37]} 35. Rc1 {[%clk 0:00:25]}  Bg6 {[%clk 0:00:32]} 36. hxg4 {[%clk 0:00:19]}  Nb6 {[%clk 0:00:32]} 37. Nd6 {[%clk 0:00:19]}  Nc8 {[%clk 0:00:20]} 38. Ne4 {[%clk 0:00:18]}  Bd8 {[%clk 0:00:16]} 39. Bh6 {[%clk 0:00:05]}  Rf7 {[%clk 0:00:15]} 40. Kg1 {[%clk 0:00:05]}  Bxe4 {[%clk 0:00:10]} 41. Bxe4 {[%clk 0:00:05]}  Ne7 {[%clk 0:00:10]} 42. Rf1 {[%clk 0:00:05]}  Nd5 {[%clk 0:00:10]} 43. Ref3 {[%clk 0:00:05]}  Rxf3 {[%clk 0:00:10]} 44. Rxf3 {[%clk 0:00:06]}  Be7 {[%clk 0:00:10]} 45. Kg2 {[%clk 0:00:06]}  a5 {[%clk 0:00:09]} 46. g5 {[%clk 0:00:06]}  b5 {[%clk 0:00:10]} 47. g6 {[%clk 0:00:07]}  Bf8 {[%clk 0:00:08]} 48. Bd2 {[%clk 0:00:06]}  Bg7 {[%clk 0:00:08]} 49. Rf7 {[%clk 0:00:06]}  a4 {[%clk 0:00:08]} 50. Bf3 {[%clk 0:00:05]}  axb3 {[%clk 0:00:07]} 51. Bg4 {[%clk 0:00:06]}  Re8 {[%clk 0:00:08]} 52. Kf3 {[%clk 0:00:06]}  c5 {[%clk 0:00:07]} 53. Ke4 {[%clk 0:00:05]}  c4 {[%clk 0:00:07]} 54. Bxe6 {[%clk 0:00:04]}  Rxe6 {[%clk 0:00:05]} 55. Kxd5 {[%clk 0:00:05]}  Rxg6 {[%clk 0:00:06]} 56. Rb7 {[%clk 0:00:05]}  Rg2 {[%clk 0:00:03]} 57. Bc3 {[%clk 0:00:06]}  Bh6 {[%clk 0:00:04]} 58. Rxb5 {[%clk 0:00:05]}  Bc1 {[%clk 0:00:05]} 59. Kxc4 {[%clk 0:00:06]}  Bxb2 {[%clk 0:00:06]} 60. Rxb3 {[%clk 0:00:06]}  Bc1 {[%clk 0:00:06]} 61. Kd5 {[%clk 0:00:06]}  Rg4 {[%clk 0:00:07]} 62. Rb7 {[%clk 0:00:05]}  Kf8 {[%clk 0:00:05]} 63. Ke6 {[%clk 0:00:05]}  Rg6+ {[%clk 0:00:05]} 64. Kf5 {[%clk 0:00:05]}  Rc6 {[%clk 0:00:06]} 65. Bb4+ {[%clk 0:00:05]}  Ke8 {[%clk 0:00:07]} 66. d5 {[%clk 0:00:06]}  Rc4 {[%clk 0:00:07]} 67. Ke6 {[%clk 0:00:06]}  Kd8 {[%clk 0:00:06]} 68. Bd6 {[%clk 0:00:05]} 1-0


[Site "https://www.chess.com"]

[Event "Titled Tuesday Blitz March 21 Early 2023"]
[White "Kamsky, Gata"]
[Black "Smirnov, Pavel"]
[WhiteFideId "2000024"]
[BlackFideId "4123425"]
[WhiteElo "2666"]
[BlackElo "2519"]
[Result "1/2-1/2"]
[Round "06"]
[TimeControl "180+2"]
[Date "2023.03.21"]
[WhiteClock "0:00:49"]
[BlackClock "0:01:09"]

1. e4 {[%clk 0:03:00]}  e5 {[%clk 0:02:59]} 2. Nf3 {[%clk 0:02:59]}  Nc6 {[%clk 0:02:59]} 3. Bb5 {[%clk 0:02:58]}  a6 {[%clk 0:02:59]} 4. Ba4 {[%clk 0:02:58]}  Nf6 {[%clk 0:02:59]} 5. O-O {[%clk 0:02:58]}  Be7 {[%clk 0:03:00]} 6. Re1 {[%clk 0:02:58]}  b5 {[%clk 0:03:00]} 7. Bb3 {[%clk 0:02:58]}  O-O {[%clk 0:03:01]} 8. c3 {[%clk 0:02:58]}  d5 {[%clk 0:03:01]} 9. d3 {[%clk 0:02:59]}  dxe4 {[%clk 0:02:59]} 10. dxe4 {[%clk 0:02:58]}  Qxd1 {[%clk 0:02:59]} 11. Bxd1 {[%clk 0:02:58]}  Be6 {[%clk 0:02:53]} 12. a4 {[%clk 0:02:51]}  b4 {[%clk 0:02:45]} 13. a5 {[%clk 0:02:48]}  Rfb8 {[%clk 0:02:21]} 14. Ba4 {[%clk 0:02:34]}  Nxa5 {[%clk 0:02:20]} 15. Nxe5 {[%clk 0:02:33]}  bxc3 {[%clk 0:02:12]} 16. Nxc3 {[%clk 0:02:28]}  Nb3 {[%clk 0:02:10]} 17. Rb1 {[%clk 0:01:47]}  Nxc1 {[%clk 0:02:07]} 18. Rexc1 {[%clk 0:01:47]}  Rb6 {[%clk 0:01:53]} 19. Nc6 {[%clk 0:01:38]}  Bf8 {[%clk 0:01:50]} 20. Nd4 {[%clk 0:01:24]}  Bc4 {[%clk 0:01:41]} 21. Rd1 {[%clk 0:01:20]}  h6 {[%clk 0:01:20]} 22. b3 {[%clk 0:01:15]}  Be6 {[%clk 0:01:15]} 23. Nxe6 {[%clk 0:00:59]}  Rxe6 {[%clk 0:01:14]} 24. Nd5 {[%clk 0:00:54]}  Nxd5 {[%clk 0:01:10]} 25. exd5 {[%clk 0:00:55]}  Rb6 {[%clk 0:01:10]} 26. Rbc1 {[%clk 0:00:53]}  Bd6 {[%clk 0:01:10]} 27. g3 {[%clk 0:00:53]}  g6 {[%clk 0:01:10]} 28. Kg2 {[%clk 0:00:53]}  Kg7 {[%clk 0:01:11]} 29. Re1 {[%clk 0:00:51]}  Rab8 {[%clk 0:01:09]} 30. Re4 {[%clk 0:00:50]}  Rb4 {[%clk 0:01:09]} 31. Rce1 {[%clk 0:00:49]}  Rxe4 {[%clk 0:01:08]} 32. Rxe4 {[%clk 0:00:49]}  Rb4 {[%clk 0:01:08]} 33. Rxb4 {[%clk 0:00:49]}  Bxb4 {[%clk 0:01:09]} 1/2-1/2


[Site "https://www.chess.com"]

[Event "Titled Tuesday Blitz March 21 Early 2023"]
[White "Navara, David"]
[Black "Flores, Diego"]
[WhiteFideId "309095"]
[BlackFideId "108049"]
[WhiteElo "2675"]
[BlackElo "2606"]
[Result "0-1"]
[Round "06"]
[TimeControl "180+2"]
[Date "2023.03.21"]
[WhiteClock "0:00:04"]
[BlackClock "0:00:05"]

1. c4 {[%clk 0:03:00]}  g6 {[%clk 0:02:49]} 2. e4 {[%clk 0:03:00]}  Bg7 {[%clk 0:02:43]} 3. d4 {[%clk 0:03:00]}  d6 {[%clk 0:02:44]} 4. Nf3 {[%clk 0:03:00]}  Nf6 {[%clk 0:02:44]} 5. Nc3 {[%clk 0:03:00]}  O-O {[%clk 0:02:44]} 6. Be2 {[%clk 0:03:01]}  c5 {[%clk 0:02:39]} 7. O-O {[%clk 0:03:02]}  Re8 {[%clk 0:02:35]} 8. d5 {[%clk 0:02:40]}  e6 {[%clk 0:02:35]} 9. h3 {[%clk 0:02:39]}  exd5 {[%clk 0:02:32]} 10. exd5 {[%clk 0:02:40]}  Bf5 {[%clk 0:02:28]} 11. Bd3 {[%clk 0:02:40]}  Ne4 {[%clk 0:02:13]} 12. Nxe4 {[%clk 0:02:29]}  Bxe4 {[%clk 0:02:14]} 13. Bxe4 {[%clk 0:02:20]}  Rxe4 {[%clk 0:02:14]} 14. Qd3 {[%clk 0:02:21]}  Re8 {[%clk 0:02:13]} 15. Bf4 {[%clk 0:02:15]}  Na6 {[%clk 0:01:59]} 16. Rae1 {[%clk 0:02:06]}  Qf6 {[%clk 0:01:39]} 17. Qd2 {[%clk 0:01:50]}  b5 {[%clk 0:01:33]} 18. cxb5 {[%clk 0:01:45]}  Nc7 {[%clk 0:01:31]} 19. a4 {[%clk 0:01:46]}  Rab8 {[%clk 0:00:55]} 20. b3 {[%clk 0:01:32]}  Rxe1 {[%clk 0:00:46]} 21. Rxe1 {[%clk 0:01:33]}  a6 {[%clk 0:00:45]} 22. bxa6 {[%clk 0:01:12]}  Nxa6 {[%clk 0:00:46]} 23. Ng5 {[%clk 0:01:01]}  h6 {[%clk 0:00:29]} 24. Ne4 {[%clk 0:01:01]}  Qd4 {[%clk 0:00:29]} 25. Qxd4 {[%clk 0:00:40]}  cxd4 {[%clk 0:00:27]} 26. Nd2 {[%clk 0:00:40]}  d3 {[%clk 0:00:24]} 27. Re3 {[%clk 0:00:32]}  Rb4 {[%clk 0:00:13]} 28. Bxd6 {[%clk 0:00:32]}  Rd4 {[%clk 0:00:13]} 29. Be5 {[%clk 0:00:31]}  Rxd5 {[%clk 0:00:10]} 30. Bxg7 {[%clk 0:00:31]}  Kxg7 {[%clk 0:00:11]} 31. Kf1 {[%clk 0:00:22]}  Nb4 {[%clk 0:00:10]} 32. Re4 {[%clk 0:00:21]}  Nc2 {[%clk 0:00:11]} 33. b4 {[%clk 0:00:21]}  Rd8 {[%clk 0:00:10]} 34. b5 {[%clk 0:00:18]}  Rc8 {[%clk 0:00:08]} 35. Rc4 {[%clk 0:00:17]}  Ra8 {[%clk 0:00:07]} 36. g4 {[%clk 0:00:09]}  Kf6 {[%clk 0:00:07]} 37. Kg2 {[%clk 0:00:09]}  Ke5 {[%clk 0:00:06]} 38. Kf3 {[%clk 0:00:09]}  Kd5 {[%clk 0:00:07]} 39. Rf4 {[%clk 0:00:05]}  Ra7 {[%clk 0:00:02]} 40. b6 {[%clk 0:00:05]}  Ra6 {[%clk 0:00:01]} 41. a5 {[%clk 0:00:03]}  Rxa5 {[%clk 0:00:01]} 42. Rxf7 {[%clk 0:00:03]}  Rb5 {[%clk 0:00:02]} 43. b7 {[%clk 0:00:04]}  Nd4+ {[%clk 0:00:02]} 44. Ke3 {[%clk 0:00:04]}  Nc6 {[%clk 0:00:03]} 45. Kxd3 {[%clk 0:00:04]}  Ne5+ {[%clk 0:00:03]} 46. Kc3 {[%clk 0:00:04]}  Nxf7 {[%clk 0:00:04]} 47. Nc4 {[%clk 0:00:04]}  Rxb7 {[%clk 0:00:05]} 48. Ne3+ {[%clk 0:00:04]}  Ke4 {[%clk 0:00:05]} 0-1


[Site "https://www.chess.com"]

[Event "Titled Tuesday Blitz March 21 Early 2023"]
[White "Tari, Aryan"]
[Black "Weetik, Vjacheslav"]
[WhiteFideId "1510045"]
[BlackFideId "4153472"]
[WhiteElo "2583"]
[BlackElo "2469"]
[Result "0-1"]
[Round "06"]
[TimeControl "180+2"]
[Date "2023.03.21"]
[WhiteClock "0:00:02"]
[BlackClock "0:00:02"]

1. e4 {[%clk 0:02:56]}  c6 {[%clk 0:02:59]} 2. Nc3 {[%clk 0:02:52]}  d5 {[%clk 0:03:00]} 3. Nf3 {[%clk 0:02:46]}  dxe4 {[%clk 0:03:00]} 4. Nxe4 {[%clk 0:02:46]}  Nf6 {[%clk 0:03:01]} 5. Qe2 {[%clk 0:02:43]}  Nxe4 {[%clk 0:03:01]} 6. Qxe4 {[%clk 0:02:43]}  Nd7 {[%clk 0:03:02]} 7. d4 {[%clk 0:02:43]}  Nf6 {[%clk 0:02:59]} 8. Qd3 {[%clk 0:02:43]}  g6 {[%clk 0:02:56]} 9. Be2 {[%clk 0:02:43]}  Bg7 {[%clk 0:02:56]} 10. O-O {[%clk 0:02:43]}  O-O {[%clk 0:02:53]} 11. Rd1 {[%clk 0:02:43]}  Bf5 {[%clk 0:02:50]} 12. Qb3 {[%clk 0:02:43]}  Qb6 {[%clk 0:02:50]} 13. Qa4 {[%clk 0:02:19]}  Rfd8 {[%clk 0:02:42]} 14. c3 {[%clk 0:02:09]}  Nd5 {[%clk 0:02:27]} 15. Re1 {[%clk 0:01:46]}  c5 {[%clk 0:02:20]} 16. dxc5 {[%clk 0:01:43]}  Qxc5 {[%clk 0:02:20]} 17. Qh4 {[%clk 0:01:44]}  f6 {[%clk 0:02:00]} 18. Nd4 {[%clk 0:01:35]}  Bd7 {[%clk 0:01:59]} 19. Bh6 {[%clk 0:01:33]}  e5 {[%clk 0:01:59]} 20. Nb3 {[%clk 0:01:25]}  Qc7 {[%clk 0:01:39]} 21. Bf3 {[%clk 0:01:18]}  Bc6 {[%clk 0:01:31]} 22. Bxg7 {[%clk 0:01:14]}  Kxg7 {[%clk 0:01:31]} 23. Nc5 {[%clk 0:01:13]}  Re8 {[%clk 0:01:22]} 24. Rad1 {[%clk 0:00:59]}  Rad8 {[%clk 0:01:21]} 25. Qc4 {[%clk 0:00:38]}  Nf4 {[%clk 0:01:12]} 26. Nxb7 {[%clk 0:00:36]}  Rxd1 {[%clk 0:00:46]} 27. Rxd1 {[%clk 0:00:34]}  e4 {[%clk 0:00:46]} 28. Na5 {[%clk 0:00:17]}  Qxa5 {[%clk 0:00:22]} 29. Qxc6 {[%clk 0:00:16]}  Qe5 {[%clk 0:00:19]} 30. Rd7+ {[%clk 0:00:12]}  Kh6 {[%clk 0:00:19]} 31. Bd1 {[%clk 0:00:11]}  e3 {[%clk 0:00:19]} 32. Qf3 {[%clk 0:00:07]}  e2 {[%clk 0:00:19]} 33. Bxe2 {[%clk 0:00:08]}  Nxe2+ {[%clk 0:00:17]} 34. Kh1 {[%clk 0:00:07]}  Nf4 {[%clk 0:00:14]} 35. h3 {[%clk 0:00:06]}  Qf5 {[%clk 0:00:05]} 36. Rd4 {[%clk 0:00:05]}  g5 {[%clk 0:00:04]} 37. Kh2 {[%clk 0:00:05]}  Kg6 {[%clk 0:00:04]} 38. Ra4 {[%clk 0:00:03]}  Re7 {[%clk 0:00:04]} 39. Ra6 {[%clk 0:00:02]}  Nd3 {[%clk 0:00:02]} 40. Qxf5+ {[%clk 0:00:01]}  Kxf5 {[%clk 0:00:03]} 41. Ra5+ {[%clk 0:00:01]}  Kg6 {[%clk 0:00:03]} 42. f3 {[%clk 0:00:01]}  Nxb2 {[%clk 0:00:02]} 43. Rb5 {[%clk 0:00:02]}  Nd1 {[%clk 0:00:01]} 44. c4 {[%clk 0:00:02]}  Re2 {[%clk 0:00:01]} 45. c5 {[%clk 0:00:02]}  Ne3 {[%clk 0:00:01]} 46. Kg1 {[%clk 0:00:01]}  Rxg2+ {[%clk 0:00:02]} 47. Kh1 {[%clk 0:00:02]}  Rc2 {[%clk 0:00:03]} 48. a4 {[%clk 0:00:02]}  Nf5 {[%clk 0:00:03]} 49. Rb7 {[%clk 0:00:02]}  Nd4 {[%clk 0:00:02]} 50. Rxa7 {[%clk 0:00:02]}  Nxf3 {[%clk 0:00:02]} 0-1


[Site "https://www.chess.com"]

[Event "Titled Tuesday Blitz March 21 Early 2023"]
[White "Drygalov, Sergey"]
[Black "Bolourchifard, Farzad"]
[WhiteFideId "24171743"]
[BlackFideId "12510084"]
[WhiteElo "2533"]
[BlackElo "2317"]
[Result "1/2-1/2"]
[Round "06"]
[TimeControl "180+2"]
[Date "2023.03.21"]
[WhiteClock "0:00:14"]
[BlackClock "0:00:22"]

1. d4 {[%clk 0:02:51]}  Nf6 {[%clk 0:03:00]} 2. c4 {[%clk 0:02:51]}  e6 {[%clk 0:03:00]} 3. Nf3 {[%clk 0:02:52]}  d5 {[%clk 0:03:00]} 4. Nc3 {[%clk 0:02:53]}  Be7 {[%clk 0:03:00]} 5. g3 {[%clk 0:02:52]}  c6 {[%clk 0:02:58]} 6. Bg2 {[%clk 0:02:51]}  a6 {[%clk 0:02:57]} 7. O-O {[%clk 0:02:47]}  dxc4 {[%clk 0:02:54]} 8. Ne5 {[%clk 0:02:46]}  Nd5 {[%clk 0:02:40]} 9. Nxc4 {[%clk 0:02:46]}  b5 {[%clk 0:02:23]} 10. Ne5 {[%clk 0:02:46]}  Bb7 {[%clk 0:02:19]} 11. a4 {[%clk 0:02:44]}  Nd7 {[%clk 0:02:05]} 12. Nxd7 {[%clk 0:02:03]}  Qxd7 {[%clk 0:02:06]} 13. Ne4 {[%clk 0:02:03]}  O-O {[%clk 0:01:57]} 14. Nc5 {[%clk 0:02:00]}  Qc8 {[%clk 0:01:35]} 15. e4 {[%clk 0:01:56]}  Nf6 {[%clk 0:01:34]} 16. Be3 {[%clk 0:01:51]}  Rd8 {[%clk 0:01:34]} 17. Qc2 {[%clk 0:01:51]}  Nd7 {[%clk 0:01:34]} 18. f4 {[%clk 0:01:45]}  Nxc5 {[%clk 0:01:35]} 19. dxc5 {[%clk 0:01:45]}  a5 {[%clk 0:01:34]} 20. e5 {[%clk 0:01:44]}  b4 {[%clk 0:01:30]} 21. Be4 {[%clk 0:01:40]}  h6 {[%clk 0:01:29]} 22. f5 {[%clk 0:01:37]}  exf5 {[%clk 0:01:29]} 23. Bxf5 {[%clk 0:01:37]}  Qc7 {[%clk 0:01:24]} 24. e6 {[%clk 0:01:16]}  f6 {[%clk 0:01:11]} 25. Bf4 {[%clk 0:01:10]}  Qc8 {[%clk 0:01:10]} 26. Rfd1 {[%clk 0:01:09]}  Rd5 {[%clk 0:01:10]} 27. Bd6 {[%clk 0:00:52]}  Qf8 {[%clk 0:01:08]} 28. Rxd5 {[%clk 0:00:25]}  cxd5 {[%clk 0:01:07]} 29. Bxe7 {[%clk 0:00:24]}  Qxe7 {[%clk 0:01:08]} 30. c6 {[%clk 0:00:21]}  Bc8 {[%clk 0:00:58]} 31. Rc1 {[%clk 0:00:18]}  Bxe6 {[%clk 0:00:55]} 32. Bxe6+ {[%clk 0:00:13]}  Qxe6 {[%clk 0:00:55]} 33. c7 {[%clk 0:00:14]}  Rc8 {[%clk 0:00:54]} 34. Qc5 {[%clk 0:00:14]}  Qe5 {[%clk 0:00:48]} 35. b3 {[%clk 0:00:10]}  d4 {[%clk 0:00:47]} 36. Qc4+ {[%clk 0:00:10]}  Kf8 {[%clk 0:00:42]} 37. Kg2 {[%clk 0:00:10]}  Qe4+ {[%clk 0:00:42]} 38. Kg1 {[%clk 0:00:10]}  Qe3+ {[%clk 0:00:42]} 39. Kg2 {[%clk 0:00:11]}  Qe4+ {[%clk 0:00:41]} 40. Kg1 {[%clk 0:00:11]}  Qe3+ {[%clk 0:00:34]} 41. Kg2 {[%clk 0:00:12]}  d3 {[%clk 0:00:34]} 42. Qd5 {[%clk 0:00:08]}  Qe7 {[%clk 0:00:25]} 43. Qb7 {[%clk 0:00:06]}  Qd7 {[%clk 0:00:26]} 44. Rc4 {[%clk 0:00:05]}  d2 {[%clk 0:00:21]} 45. Rd4 {[%clk 0:00:06]}  Qxc7 {[%clk 0:00:17]} 46. Qd5 {[%clk 0:00:06]}  Qc6 {[%clk 0:00:16]} 47. Rxd2 {[%clk 0:00:06]}  Qxd5+ {[%clk 0:00:15]} 48. Rxd5 {[%clk 0:00:07]}  Rc3 {[%clk 0:00:15]} 49. Rxa5 {[%clk 0:00:07]}  Rxb3 {[%clk 0:00:16]} 50. Rb5 {[%clk 0:00:08]}  Ra3 {[%clk 0:00:16]} 51. Rxb4 {[%clk 0:00:08]}  h5 {[%clk 0:00:16]} 52. h4 {[%clk 0:00:09]}  Kf7 {[%clk 0:00:17]} 53. Rc4 {[%clk 0:00:09]}  Kg6 {[%clk 0:00:17]} 54. Kf2 {[%clk 0:00:10]}  Kh6 {[%clk 0:00:18]} 55. Rb4 {[%clk 0:00:09]}  Kg6 {[%clk 0:00:18]} 56. Rc4 {[%clk 0:00:09]}  Kh6 {[%clk 0:00:19]} 57. Rf4 {[%clk 0:00:08]}  Kg6 {[%clk 0:00:19]} 58. Kg2 {[%clk 0:00:08]}  Kh6 {[%clk 0:00:20]} 59. g4 {[%clk 0:00:09]}  hxg4 {[%clk 0:00:19]} 60. Rxg4 {[%clk 0:00:09]}  f5 {[%clk 0:00:20]} 61. Rb4 {[%clk 0:00:10]}  g6 {[%clk 0:00:20]} 62. Rf4 {[%clk 0:00:10]}  Kh5 {[%clk 0:00:21]} 63. Rb4 {[%clk 0:00:11]}  g5 {[%clk 0:00:20]} 64. hxg5 {[%clk 0:00:12]}  Kxg5 {[%clk 0:00:21]} 65. Kf2 {[%clk 0:00:12]}  Kf6 {[%clk 0:00:21]} 66. Ke2 {[%clk 0:00:12]}  Ke5 {[%clk 0:00:22]} 67. Kf2 {[%clk 0:00:13]}  Kd5 {[%clk 0:00:22]} 68. Rf4 {[%clk 0:00:13]}  Kc6 {[%clk 0:00:22]} 69. Ke2 {[%clk 0:00:12]}  Kb6 {[%clk 0:00:22]} 70. Kd2 {[%clk 0:00:13]}  Ka5 {[%clk 0:00:23]} 71. Kc2 {[%clk 0:00:13]}  Rxa4 {[%clk 0:00:23]} 72. Rxf5+ {[%clk 0:00:14]}  Kb6 {[%clk 0:00:24]} 73. Kc3 {[%clk 0:00:14]}  Rh4 {[%clk 0:00:22]} 1/2-1/2


[Site "https://www.chess.com"]